bitfinex/quotes_BTCUSD_20220202
["timestamp","ask_amount","ask_price","bid_price","bid_amount"]
[1643802059575,0.24403368,38542.0,38538.0,0.27647495]
[1643802060019,0.24384807,38542.0,38538.0,0.27647495]
[1643802060521,0.44542735,38542.0,38539.0,0.064862]
[1643802060719,0.24384807,38542.0,38539.0,0.06506299]
[1643802060920,0.00018561,38543.0,38539.0,0.06506299]
[1643802061120,0.001,38544.0,38539.0,0.06506299]
[1643802061421,0.001,38544.0,38539.0,0.12992701]
[1643802061619,0.00118561,38544.0,38539.0,0.12992701]
[1643802061819,0.26027398,38544.0,38539.0,0.12992701]
[1643802062223,0.00126102,38543.0,38539.0,0.12992701]
[1643802062820,0.00144663,38543.0,38539.0,0.12992701]
[1643802063224,0.00018561,38543.0,38539.0,0.12992701]
[1643802063423,0.00126102,38543.0,38539.0,0.12992701]
[1643802063867,0.00126102,38543.0,38539.0,0.17992701]
[1643802064068,0.00144663,38543.0,38539.0,0.17992701]
[1643802064468,0.00018561,38543.0,38539.0,0.17992701]
[1643802064670,0.00126102,38543.0,38539.0,0.17992701]
[1643802065271,0.00144663,38543.0,38539.0,0.17992701]
[1643802065672,0.00018561,38543.0,38539.0,0.17992701]
[1643802065872,0.00126102,38543.0,38539.0,0.17992701]
[1643802066473,0.00144663,38543.0,38539.0,0.17992701]
[1643802066772,0.00018561,38543.0,38539.0,0.17992701]
[1643802066973,0.25751965,38544.0,38539.0,0.17992701]
[1643802070620,0.00126453,38543.0,38539.0,0.17992701]
[1643802070823,0.00145014,38543.0,38539.0,0.17992701]
[1643802071669,0.00018561,38543.0,38539.0,0.17992701]
[1643802071867,0.00126453,38543.0,38539.0,0.17992701]
[1643802072469,0.00145014,38543.0,38539.0,0.17992701]
[1643802072874,0.00018561,38543.0,38539.0,0.17992701]
[1643802073073,0.00126453,38543.0,38539.0,0.17992701]
[1643802073469,0.00145014,38543.0,38539.0,0.17992701]
[1643802074072,0.00018561,38543.0,38539.0,0.17992701]
[1643802074271,0.00126453,38543.0,38539.0,0.17992701]
[1643802074471,0.00126453,38543.0,38540.0,0.2229917]
[1643802074671,0.00126453,38543.0,38540.0,0.00020097]
[1643802075324,0.22742706,38544.0,38540.0,0.00020097]
[1643802075520,0.00126453,38543.0,38540.0,0.00020097]
[1643802075722,0.00126453,38543.0,38540.0,0.22158746]
[1643802075922,0.00126453,38543.0,38540.0,0.1299171]
[1643802076124,0.00126453,38543.0,38541.0,0.414716]
[1643802076325,0.00126453,38543.0,38541.0,0.12991629]
[1643802076523,0.00118561,38544.0,38541.0,0.12991629]
[1643802076722,0.00226453,38544.0,38542.0,0.26781991]
[1643802076922,0.00226453,38544.0,38542.0,0.26802088]
[1643802077624,0.001,38544.0,38542.0,0.00020097]
[1643802078021,0.001,38544.0,38542.0,0.23752517]
[1643802078222,0.001,38544.0,38542.0,0.22578024]
[1643802079067,0.001,38544.0,38542.0,0.00020097]
[1643802081571,0.0009326,38544.0,38542.0,0.00020097]
[1643802081770,0.0009326,38544.0,38543.0,0.349858]
[1643802081971,0.0009326,38544.0,38543.0,0.00020097]
[1643802084925,0.0009326,38544.0,38543.0,0.35005897]
[1643802085125,0.0009326,38544.0,38543.0,0.66567403]
[1643802085325,0.0009326,38544.0,38543.0,0.71787403]
[1643802085629,0.0009326,38544.0,38543.0,0.45225897]
[1643802085825,0.0009326,38544.0,38543.0,0.72541026]
[1643802087066,0.0009326,38544.0,38543.0,1.0074819]
[1643802090419,0.0009326,38544.0,38543.0,0.73433061]
[1643802091221,0.00940028,38549.0,38544.0,0.5]
[1643802091421,0.00940028,38549.0,38545.0,0.23235119]
[1643802091422,0.00018576,38546.0,38545.0,0.23235119]
[1643802091621,0.00018576,38546.0,38545.0,0.58241013]
[1643802092020,0.00940028,38549.0,38545.0,0.58241013]
[1643802092221,0.00940028,38549.0,38546.0,0.486584]
[1643802092421,0.00940028,38549.0,38547.0,0.349858]
[1643802092629,0.59980511,38549.0,38547.0,0.00020094]
[1643802092826,1.01547306,38548.0,38547.0,0.00020094]
[1643802093025,0.749858,38548.0,38547.0,0.00020094]
[1643802093690,0.96123942,38548.0,38547.0,0.00020094]
[1643802094081,1.50292783,38548.0,38547.0,0.00020094]
[1643802094286,0.75,38547.0,38532.0,0.32989134]
[1643802094481,0.66767306,38546.0,38543.0,0.00020093]
[1643802094681,0.349858,38545.0,38543.0,0.00020093]
[1643802094879,0.8022,38544.0,38543.0,0.00020093]
[1643802095081,1.37250213,38544.0,38543.0,0.00020093]
[1643802095278,1.96857548,38544.0,38543.0,0.00020093]
[1643802095479,2.03345648,38544.0,38543.0,0.00020093]
[1643802096281,2.78555648,38544.0,38543.0,0.00020093]
[1643802100353,2.83555648,38544.0,38543.0,0.00020093]
[1643802100655,2.78555648,38544.0,38543.0,0.00020093]
[1643802101287,0.26945858,38541.0,38537.0,0.00132431]
[1643802101484,0.66589087,38540.0,38537.0,0.00132431]
[1643802101685,0.349858,38539.0,38531.0,0.31606514]
[1643802101881,0.25795043,38538.0,38537.0,0.00132423]
[1643802102084,0.58729414,38538.0,38537.0,0.00132423]
[1643802102284,0.93715214,38538.0,38537.0,0.00132423]
[1643802102483,0.58715214,38538.0,38537.0,0.00132423]
[1643802102884,0.58715214,38538.0,38533.0,0.06487587]
[1643802103088,0.23729414,38538.0,38536.0,0.00132425]
[1643802103483,0.0522,38539.0,38536.0,0.00132425]
[1643802104083,0.0522,38539.0,38532.0,0.05]
[1643802104283,0.0522,38539.0,38536.0,0.00132425]
[1643802104686,0.57279375,38538.0,38536.0,0.00132425]
[1643802104919,0.22293575,38538.0,38536.0,0.00132425]
[1643802105322,0.22293575,38538.0,38532.0,0.30269726]
[1643802105523,0.22293575,38538.0,38535.0,0.00132426]
[1643802106323,0.47616579,38538.0,38535.0,0.00132426]
[1643802106527,0.47616579,38538.0,38526.0,0.45964649]
[1643802106723,0.064883,38537.0,38535.0,0.00132427]
[1643802106923,0.66164258,38536.0,38535.0,0.00132427]
[1643802107325,0.66279337,38536.0,38535.0,0.00132427]
[1643802107724,0.464886,38536.0,38526.0,0.39471961]
[1643802107926,0.7186497,38536.0,38534.0,0.00132428]
[1643802108126,0.27622808,38535.0,38534.0,0.00132428]
[1643802108325,0.62622808,38535.0,38534.0,0.00132428]
[1643802108528,1.28095394,38535.0,38534.0,0.00132428]
[1643802108784,1.02828608,38535.0,38524.0,0.39477334]
[1643802108985,0.85450143,38535.0,38524.0,0.39477334]
[1643802109185,0.67842808,38535.0,38533.0,0.0013243]
[1643802109584,0.85450143,38535.0,38533.0,0.0013243]
[1643802109783,0.67842808,38535.0,38533.0,0.0013243]
[1643802109985,0.6070527,38534.0,38533.0,0.0013243]
[1643802110183,0.9569107,38534.0,38532.0,0.00132431]
[1643802110385,0.55299879,38533.0,38532.0,0.00132431]
[1643802111183,0.55299879,38533.0,38523.0,0.12976146]
[1643802111384,0.28132587,38526.0,38523.0,0.12976146]
[1643802111585,0.28132587,38526.0,38524.0,0.6225991]
[1643802111888,0.28132587,38526.0,38525.0,0.349858]
[1643802112624,0.28132587,38526.0,38524.0,0.27406556]
[1643802113426,0.43073167,38531.0,38525.0,0.349858]
[1643802113626,0.1179,38532.0,38524.0,0.2727411]
[1643802113827,0.1179,38532.0,38526.0,0.00132442]
[1643802114530,0.30547507,38528.0,38526.0,0.00132442]
[1643802114727,0.27492757,38528.0,38526.0,0.00132442]
[1643802114927,0.27492757,38528.0,38524.0,0.2727411]
[1643802115127,0.27492757,38528.0,38525.0,0.00132444]
[1643802116182,0.27492757,38528.0,38524.0,0.2727411]
[1643802116375,0.27492757,38528.0,38525.0,0.00132444]
[1643802117177,0.27492757,38528.0,38525.0,0.0662119]
[1643802117374,0.26251452,38531.0,38525.0,0.06488746]
[1643802117580,0.26251452,38531.0,38525.0,0.0662119]
[1643802117779,0.02042285,38531.0,38525.0,0.0662119]
[1643802118375,0.02042285,38531.0,38525.0,0.1310989]
[1643802118575,0.27736726,38529.0,38525.0,0.12977446]
[1643802118774,0.27736726,38529.0,38526.0,0.00132442]
[1643802119780,0.27736726,38529.0,38525.0,0.12977446]
[1643802120030,0.27736726,38529.0,38526.0,0.00132443]
[1643802120834,0.27736726,38529.0,38525.0,0.12977446]
[1643802120835,0.48537882,38529.0,38525.0,0.12977446]
[1643802121033,0.27736726,38529.0,38526.0,0.00132443]
[1643802122136,0.27736726,38529.0,38525.0,0.35496917]
[1643802122338,0.27736726,38529.0,38526.0,0.00132443]
[1643802123237,0.27736726,38529.0,38525.0,0.12977446]
[1643802123437,0.27736726,38529.0,38526.0,0.00132443]
[1643802124578,0.27736726,38529.0,38523.0,0.61124198]
[1643802124778,0.27736726,38529.0,38526.0,0.00132443]
[1643802125779,0.27736726,38529.0,38523.0,0.28853283]
[1643802125983,0.27736726,38529.0,38526.0,0.00132443]
[1643802126879,0.27736726,38529.0,38524.0,0.0648895]
[1643802127080,0.27736726,38529.0,38526.0,0.00132443]
[1643802128128,0.27736726,38529.0,38524.0,0.0648895]
[1643802128329,0.27736726,38529.0,38526.0,0.00132443]
[1643802129332,0.27736726,38529.0,38524.0,0.0648895]
[1643802129532,0.27736726,38529.0,38526.0,0.00132443]
[1643802130533,0.27736726,38529.0,38524.0,0.0648895]
[1643802130733,0.27736726,38529.0,38526.0,0.00132443]
[1643802131779,0.27736726,38529.0,38524.0,0.0648895]
[1643802131980,0.27736726,38529.0,38526.0,0.00132443]
[1643802132984,0.27736726,38529.0,38524.0,0.0648895]
[1643802133184,0.27736726,38529.0,38526.0,0.00132443]
[1643802134181,0.1179,38532.0,38524.0,0.0648895]
[1643802134383,0.1179,38532.0,38526.0,0.00132443]
[1643802135228,0.23237507,38528.0,38524.0,0.0648895]
[1643802135429,0.23237507,38528.0,38527.0,0.0013244]
[1643802136533,0.23237507,38528.0,38524.0,0.0648895]
[1643802136727,0.1179,38532.0,38528.0,9.036e-05]
[1643802136927,0.1179,38532.0,38526.0,0.00132443]
[1643802137727,0.1179,38532.0,38524.0,0.59184316]
[1643802137728,0.27716882,38528.0,38524.0,0.59184316]
[1643802137931,0.27716882,38528.0,38527.0,0.0013244]
[1643802138881,0.27716882,38528.0,38524.0,0.32987363]
[1643802139181,0.27716882,38528.0,38526.0,0.00132443]
[1643802139382,0.1179,38532.0,38526.0,0.00132443]
[1643802139982,0.1179,38532.0,38526.0,0.33119806]
[1643802140181,0.1179,38532.0,38526.0,0.32987363]
[1643802140382,0.1179,38532.0,38527.0,0.0013244]
[1643802140586,0.24878848,38530.0,38527.0,0.0013244]
[1643802141283,0.24878848,38530.0,38526.0,0.32987363]
[1643802141484,0.24878848,38530.0,38527.0,0.00132441]
[1643802141884,0.1179,38532.0,38527.0,0.00132441]
[1643802142532,0.1179,38532.0,38526.0,0.32987363]
[1643802142732,0.1179,38532.0,38528.0,0.00132439]
[1643802143735,0.1179,38532.0,38526.0,0.32987363]
[1643802143936,0.1179,38532.0,38528.0,0.00132438]
[1643802144134,0.2728621,38529.0,38528.0,0.00132438]
[1643802144334,0.1179,38532.0,38528.0,0.00132438]
[1643802144834,0.1179,38532.0,38526.0,0.32987363]
[1643802145033,0.1179,38532.0,38528.0,0.00132438]
[1643802145434,0.25965492,38529.0,38528.0,0.00132438]
[1643802146034,0.25965492,38529.0,38526.0,0.32987363]
[1643802146285,0.25965492,38529.0,38527.0,0.00132441]
[1643802146484,0.349858,38528.0,38527.0,0.00132441]
[1643802146689,0.59784653,38528.0,38527.0,0.00132441]
[1643802146885,0.59784653,38528.0,38519.0,0.32997525]
[1643802146886,0.75,38527.0,38519.0,0.32997525]
[1643802147083,0.75,38527.0,38517.0,0.00010162]
[1643802147084,0.27223625,38525.0,38517.0,0.00010162]
[1643802147284,0.76985468,38524.0,38517.0,0.00010162]
[1643802147483,0.064918,38522.0,38513.0,0.00010162]
[1643802147693,0.2944729,38516.0,38513.0,0.00010162]
[1643802147884,0.2410125,38514.0,38513.0,0.00010162]
[1643802148086,0.26138369,38514.0,38511.0,0.32987363]
[1643802148288,0.26138369,38514.0,38510.0,0.32997525]
[1643802148289,0.51438267,38514.0,38510.0,0.32997525]
[1643802148484,0.51438267,38514.0,38510.0,0.32987363]
[1643802148683,0.51438267,38514.0,38511.0,0.00068191]
[1643802149084,0.51438267,38514.0,38511.0,0.00078353]
[1643802149687,0.51438267,38514.0,38511.0,0.00010162]
[1643802149928,0.51438267,38514.0,38511.0,0.00068191]
[1643802150328,0.26138369,38514.0,38511.0,0.00068191]
[1643802150933,0.26138369,38514.0,38510.0,0.00010162]
[1643802151130,0.26138369,38514.0,38511.0,0.00132304]
[1643802151431,0.27194358,38514.0,38511.0,0.00132304]
[1643802152029,0.27194358,38514.0,38510.0,0.00010162]
[1643802152229,0.53038415,38514.0,38511.0,0.00132304]
[1643802153231,0.53038415,38514.0,38510.0,0.00010162]
[1643802153433,0.53038415,38514.0,38511.0,0.00132304]
[1643802154579,0.53038415,38514.0,38508.0,0.00010284]
[1643802154783,0.53038415,38514.0,38511.0,0.00132304]
[1643802155784,0.53038415,38514.0,38508.0,0.00010284]
[1643802155987,0.53038415,38514.0,38511.0,0.00132304]
[1643802156985,0.53038415,38514.0,38508.0,0.00010284]
[1643802157186,0.53038415,38514.0,38511.0,0.00132304]
[1643802158130,0.53038415,38514.0,38508.0,0.00010284]
[1643802158333,0.53038415,38514.0,38511.0,0.00132304]
[1643802159332,0.53038415,38514.0,38508.0,0.00010284]
[1643802159531,0.53038415,38514.0,38511.0,0.00132304]
[1643802160531,0.53038415,38514.0,38508.0,0.00010284]
[1643802160732,0.53038415,38514.0,38511.0,0.00132304]
[1643802161688,0.53038415,38514.0,38508.0,0.00010284]
[1643802161884,0.53038415,38514.0,38511.0,0.00132304]
[1643802162888,0.53038415,38514.0,38508.0,0.00010284]
[1643802163089,0.53038415,38514.0,38511.0,0.00132304]
[1643802163090,0.47818415,38514.0,38511.0,0.00132304]
[1643802164087,0.47818415,38514.0,38506.0,0.00010284]
[1643802164088,0.349858,38513.0,38506.0,0.00010284]
[1643802164293,0.31579284,38513.0,38511.0,0.00132304]
[1643802164490,0.949858,38512.0,38511.0,0.00132304]
[1643802164688,1.098318,38512.0,38511.0,0.00132304]
[1643802164928,1.2744991,38512.0,38511.0,0.00132304]
[1643802165127,1.098318,38512.0,38511.0,0.00132304]
[1643802165327,1.2744991,38512.0,38504.0,0.00010284]
[1643802165529,0.23429482,38503.0,38501.0,0.00010284]
[1643802166028,0.2592976,38502.0,38501.0,0.00010284]
[1643802166231,0.2592976,38502.0,38497.0,0.05010284]
[1643802166627,0.2592976,38502.0,38498.0,0.00132327]
[1643802166827,0.2592976,38502.0,38498.0,0.00142611]
[1643802167428,0.2592976,38502.0,38498.0,0.00132327]
[1643802167626,0.2592976,38502.0,38497.0,0.00010284]
[1643802167827,0.2592976,38502.0,38498.0,0.00132326]
[1643802168890,0.2592976,38502.0,38497.0,0.00010284]
[1643802169185,0.2592976,38502.0,38498.0,0.00132326]
[1643802170185,0.2592976,38502.0,38497.0,0.00010284]
[1643802170386,0.2592976,38502.0,38498.0,0.00121146]
[1643802170992,0.2592976,38502.0,38498.0,0.0013143]
[1643802171393,0.2592976,38502.0,38498.0,0.00010284]
[1643802171590,0.2592976,38502.0,38498.0,0.00121146]
[1643802171790,0.25920531,38502.0,38498.0,0.00121146]
[1643802172192,0.25920531,38502.0,38498.0,0.0013143]
[1643802172429,0.25920531,38502.0,38498.0,0.00010284]
[1643802172830,0.25920531,38502.0,38498.0,0.00121146]
[1643802173431,0.25920531,38502.0,38498.0,0.0013143]
[1643802173834,0.25920531,38502.0,38498.0,0.0014261]
[1643802174933,0.25920531,38502.0,38498.0,0.00010284]
[1643802175131,0.25920531,38502.0,38498.0,0.00132326]
[1643802175735,0.25920531,38502.0,38498.0,0.0014261]
[1643802176187,0.25920531,38502.0,38498.0,0.00010284]
[1643802176382,0.25920531,38502.0,38498.0,0.00132326]
[1643802177083,0.25920531,38502.0,38498.0,0.0014261]
[1643802177283,0.25920531,38502.0,38498.0,0.00010284]
[1643802177482,0.25920531,38502.0,38498.0,0.00132326]
[1643802178086,0.25920531,38502.0,38498.0,0.0014261]
[1643802178483,0.25920531,38502.0,38498.0,0.00010284]
[1643802178783,0.25920531,38502.0,38498.0,0.00132326]
[1643802179185,0.25920531,38502.0,38498.0,0.0014261]
[1643802179685,0.25920531,38502.0,38498.0,0.00010284]
[1643802179931,0.25920531,38502.0,38498.0,0.00132326]
[1643802180532,0.25920531,38502.0,38498.0,0.0014261]
[1643802180933,0.25920531,38502.0,38498.0,0.00010284]
[1643802181134,0.25920531,38502.0,38498.0,0.00132326]
[1643802181737,0.25920531,38502.0,38498.0,0.0014261]
[1643802182136,0.25920531,38502.0,38498.0,0.00010284]
[1643802182336,0.25920531,38502.0,38498.0,0.00132326]
[1643802182535,0.24903493,38501.0,38498.0,0.00132326]
[1643802182936,0.25920531,38502.0,38498.0,0.0014261]
[1643802183338,0.25920531,38502.0,38498.0,0.00010284]
[1643802183538,0.51147292,38502.0,38498.0,0.00132326]
[1643802183783,0.56367292,38502.0,38498.0,0.00132326]
[1643802183982,0.349858,38501.0,38498.0,0.00132326]
[1643802184183,0.25616104,38500.0,38498.0,0.0014261]
[1643802184380,0.37635351,38502.0,38498.0,0.0014261]
[1643802184381,0.349858,38499.0,38498.0,0.0014261]
[1643802184584,0.37635351,38502.0,38498.0,0.00010284]
[1643802184781,0.37635351,38502.0,38497.0,0.05142612]
[1643802184782,0.1,38499.0,38497.0,0.05142612]
[1643802185180,0.1,38498.0,38497.0,0.05142612]
[1643802185381,0.1,38498.0,38497.0,0.05132328]
[1643802185782,0.1,38498.0,38497.0,0.05]
[1643802186381,0.1,38501.0,38497.0,0.05]
[1643802186582,0.0522,38500.0,38497.0,0.05]
[1643802187184,0.0522,38500.0,38497.0,0.05142612]
[1643802187837,0.0522,38500.0,38497.0,0.05132328]
[1643802189240,0.0522,38500.0,38497.0,0.05]
[1643802189441,0.0522,38500.0,38497.0,0.05132328]
[1643802190443,0.0522,38500.0,38497.0,0.05]
[1643802192485,0.0522,38500.0,38497.0,0.05]
[1643802192679,0.0522,38500.0,38497.0,0.05010284]
[1643802193083,0.0522,38500.0,38497.0,0.05142612]
[1643802193283,0.349858,38499.0,38497.0,0.05132328]
[1643802193483,0.25203808,38498.0,38497.0,0.05132328]
[1643802193685,1.10189608,38498.0,38497.0,0.05132328]
[1643802193885,1.10189608,38498.0,38497.0,0.00132328]
[1643802194086,1.3803422,38498.0,38492.0,0.00010284]
[1643802194286,0.41481591,38497.0,38496.0,0.0013233]
[1643802194485,1.34641428,38497.0,38496.0,0.0013233]
[1643802194688,1.35095788,38497.0,38496.0,0.0013233]
[1643802195337,0.29833212,38492.0,38491.0,0.00010284]
[1643802195538,0.35053212,38492.0,38491.0,0.00010284]
[1643802195743,0.23301118,38491.0,38490.0,0.42]
[1643802195938,0.23301118,38491.0,38490.0,0.415]
[1643802196338,0.33301118,38491.0,38490.0,0.415]
[1643802197742,0.68286918,38491.0,38490.0,0.415]
[1643802198540,0.33301118,38491.0,38490.0,0.415]
[1643802199783,0.1,38491.0,38490.0,0.415]
[1643802200285,0.0522,38492.0,38490.0,0.415]
[1643802200682,0.35567364,38492.0,38490.0,0.415]
[1643802201084,0.1,38491.0,38490.0,0.415]
[1643802201285,0.35,38491.0,38490.0,0.38834103]
[1643802202834,0.9583817,38491.0,38490.0,0.38834103]
[1643802203028,0.9583817,38491.0,38489.0,0.00142627]
[1643802203029,1.1583817,38491.0,38489.0,0.00142627]
[1643802203230,1.31365484,38490.0,38489.0,0.00132343]
[1643802203629,1.64211706,38490.0,38489.0,0.00132343]
[1643802203832,0.32070644,38489.0,38484.0,0.00010284]
[1643802204032,0.42070644,38489.0,38488.0,0.00132344]
[1643802204232,1.06959131,38489.0,38488.0,0.00132344]
[1643802204435,1.24585353,38489.0,38488.0,0.00132344]
[1643802204835,1.29585353,38489.0,38488.0,0.00132344]
[1643802205034,1.29585353,38489.0,38483.0,0.00010284]
[1643802205236,0.802058,38488.0,38487.0,0.00132346]
[1643802205437,1.25799291,38488.0,38487.0,0.00132346]
[1643802205637,1.35799291,38488.0,38487.0,0.00132346]
[1643802205835,0.95764682,38488.0,38487.0,0.00132346]
[1643802206281,0.95764682,38488.0,38484.0,0.00010284]
[1643802206485,0.449858,38487.0,38486.0,0.00132348]
[1643802206685,0.77105029,38487.0,38486.0,0.00132348]
[1643802207282,0.94731251,38487.0,38482.0,0.00010284]
[1643802207482,0.94731251,38487.0,38485.0,0.0013235]
[1643802207483,0.65627333,38486.0,38485.0,0.0013235]
[1643802207683,0.91276236,38486.0,38485.0,0.0013235]
[1643802207885,1.01276236,38486.0,38485.0,0.0013235]
[1643802208480,1.01276236,38486.0,38482.0,0.00010284]
[1643802208681,0.66290436,38486.0,38481.0,0.06]
[1643802208884,0.83920126,38486.0,38484.0,0.00132351]
[1643802209082,0.60299372,38485.0,38484.0,0.00132351]
[1643802209284,0.25313572,38485.0,38484.0,0.00132351]
[1643802209683,0.25313572,38485.0,38482.0,0.00010284]
[1643802209931,0.25313572,38485.0,38483.0,0.00132353]
[1643802210833,0.2496621,38485.0,38483.0,0.00132353]
[1643802211033,0.23218139,38483.0,38482.0,0.00010284]
[1643802211235,0.20830964,38483.0,38482.0,0.00132354]
[1643802212232,0.30641533,38486.0,38481.0,0.06010284]
[1643802212432,0.30641533,38486.0,38481.0,0.06132357]
[1643802213433,0.2727924,38485.0,38481.0,0.06]
[1643802213692,0.2727924,38485.0,38482.0,0.00132355]
[1643802213885,0.2497747,38484.0,38482.0,0.00142639]
[1643802214584,0.2727924,38485.0,38481.0,0.06010284]
[1643802214785,0.2727924,38485.0,38481.0,0.0614264]
[1643802215186,0.2727924,38485.0,38481.0,0.06132356]
[1643802215789,0.2727924,38485.0,38481.0,0.06]
[1643802215986,0.2727924,38485.0,38481.0,0.06132356]
[1643802216187,0.24952611,38484.0,38481.0,0.06132356]
[1643802216487,0.2727924,38485.0,38481.0,0.06132356]
[1643802216887,0.3377673,38485.0,38481.0,0.06]
[1643802217087,0.4377673,38485.0,38481.0,0.06132356]
[1643802218232,0.4377673,38485.0,38481.0,0.06]
[1643802218435,0.4377673,38485.0,38481.0,0.06132356]
[1643802219035,0.3,38484.0,38475.0,0.39519503]
[1643802219234,0.3,38484.0,38475.0,0.00529503]
[1643802219434,0.3,38484.0,38473.0,0.66955229]
[1643802219834,0.3,38484.0,38473.0,0.58200685]
[1643802220035,0.3,38484.0,38476.0,0.02168227]
[1643802220435,0.3,38484.0,38474.0,0.23628271]
[1643802220836,0.6495612,38485.0,38474.0,0.28628271]
[1643802221039,0.26782213,38482.0,38474.0,0.28628271]
[1643802221281,0.26782213,38482.0,38477.0,0.07986747]
[1643802221880,0.26782213,38482.0,38478.0,0.00132197]
[1643802222884,0.26782213,38482.0,38477.0,0.07986747]
[1643802223081,0.26782213,38482.0,38478.0,0.00132196]
[1643802224082,0.26782213,38482.0,38477.0,0.07986747]
[1643802224284,0.26782213,38482.0,38478.0,0.00132196]
[1643802224685,0.2212,38485.0,38478.0,0.00132196]
[1643802224938,0.1762977,38486.0,38479.0,0.349858]
[1643802225141,0.1762977,38490.0,38480.0,0.33289822]
[1643802225337,0.2762977,38490.0,38480.0,0.33289822]
[1643802225739,0.2762977,38490.0,38482.0,0.27861166]
[1643802225740,0.258977,38488.0,38482.0,0.27861166]
[1643802225940,0.258977,38488.0,38483.0,0.33614932]
[1643802226739,0.40577474,38490.0,38483.0,0.33614932]
[1643802227239,0.1762977,38490.0,38483.0,0.38614932]
[1643802227443,0.117,38496.0,38484.0,0.402058]
[1643802227644,0.29326792,38496.0,38485.0,0.69158122]
[1643802227843,0.22971066,38494.0,38488.0,0.21915736]
[1643802228042,0.117,38496.0,38489.0,0.27623608]
[1643802228242,0.23504892,38499.0,38489.0,0.27623608]
[1643802228243,0.24276482,38493.0,38489.0,0.27623608]
[1643802228441,0.24276482,38493.0,38489.0,0.37432878]
[1643802228885,0.24276482,38493.0,38489.0,0.34442878]
[1643802229083,0.24276482,38493.0,38489.0,0.24633608]
[1643802231485,0.24245206,38493.0,38489.0,0.24633608]
[1643802234438,0.24245206,38493.0,38489.0,0.2464383]
[1643802235441,0.28874765,38499.0,38489.0,0.2464383]
[1643802235644,0.28874765,38499.0,38490.0,0.0522]
[1643802235645,0.17626792,38499.0,38490.0,0.0522]
[1643802235843,0.3678,38504.0,38490.0,0.0522]
[1643802235844,0.17626792,38502.0,38491.0,0.25865894]
[1643802236041,0.17626792,38502.0,38492.0,0.0522]
[1643802236305,0.27907378,38502.0,38493.0,0.25865894]
[1643802236504,0.27319499,38499.0,38494.0,0.0522]
[1643802237105,0.27319499,38499.0,38496.0,0.064932]
[1643802237406,0.41131684,38505.0,38496.0,0.117132]
[1643802237803,0.17626792,38505.0,38497.0,0.23897087]
[1643802238203,0.26308811,38503.0,38498.0,0.25176978]
[1643802238404,0.26308811,38503.0,38499.0,0.22688296]
[1643802238604,0.30422064,38500.0,38497.0,0.30809725]
[1643802238804,0.30422064,38500.0,38497.0,0.37302925]
[1643802239205,0.30422064,38500.0,38497.0,0.42522925]
[1643802239604,0.30422064,38500.0,38497.0,0.36029925]
[1643802240032,0.30422064,38500.0,38497.0,0.29536725]
[1643802240233,0.30422064,38500.0,38497.0,0.26874932]
[1643802240834,0.30422064,38500.0,38497.0,0.0522]
[1643802243239,0.30422064,38500.0,38491.0,0.24770467]
[1643802243436,0.26402944,38499.0,38489.0,0.00010222]
[1643802243692,0.26402944,38499.0,38488.0,0.00010222]
[1643802243693,0.26016539,38499.0,38488.0,0.00010222]
[1643802243889,0.26109687,38499.0,38488.0,0.00010222]
[1643802244289,0.27687591,38491.0,38488.0,0.2215432]
[1643802244492,0.27687591,38491.0,38488.0,0.20262376]
[1643802244687,0.27687591,38491.0,38489.0,0.21695487]
[1643802244889,0.27687591,38491.0,38488.0,0.20262376]
[1643802245089,0.0649505,38498.0,38489.0,0.22515103]
[1643802245293,0.17627594,38497.0,38489.0,0.22515103]
[1643802245494,0.5,38498.0,38490.0,0.349858]
[1643802245793,0.5,38498.0,38491.0,0.23557047]
[1643802246191,0.77651535,38498.0,38492.0,0.064937]
[1643802246392,0.77651535,38498.0,38493.0,0.2249057]
[1643802246590,0.77651535,38498.0,38493.0,0.2201543]
[1643802247435,0.27651535,38498.0,38493.0,0.2201543]
[1643802248039,0.22089514,38499.0,38494.0,0.25166534]
[1643802248240,0.22089514,38499.0,38495.0,0.25707315]
[1643802250144,0.22089514,38499.0,38495.0,0.32200815]
[1643802252584,0.22089514,38499.0,38495.0,0.064935]
[1643802252989,0.22089514,38499.0,38494.0,0.33380311]
[1643802253190,0.22089514,38499.0,38495.0,0.064933]
[1643802254692,0.22089514,38499.0,38495.0,0.129869]
[1643802256437,0.22080671,38499.0,38495.0,0.129869]
[1643802256738,0.4623993,38499.0,38495.0,0.129869]
[1643802257839,0.22080671,38499.0,38495.0,0.064933]
[1643802258887,0.43114656,38499.0,38495.0,0.064933]
[1643802259688,0.22080671,38499.0,38495.0,0.064933]
[1643802259993,0.49084959,38503.0,38496.0,0.064934]
[1643802260188,0.49084959,38503.0,38498.0,0.064933]
[1643802260889,0.24843287,38502.0,38498.0,0.064933]
[1643802261288,0.42470881,38502.0,38498.0,0.064933]
[1643802262090,0.42470881,38502.0,38499.0,0.064934]
[1643802262290,0.24843287,38502.0,38499.0,0.064934]
[1643802262539,0.17627594,38502.0,38499.0,0.064934]
[1643802262837,0.62143602,38503.0,38499.0,0.064934]
[1643802263235,0.79771196,38503.0,38499.0,0.064934]
[1643802263437,0.62143602,38503.0,38496.0,0.129874]
[1643802263637,0.25130536,38501.0,38496.0,0.064938]
[1643802263837,0.25130536,38501.0,38497.0,0.22100734]
[1643802264239,0.25130536,38501.0,38496.0,0.129873]
[1643802264436,0.62143602,38503.0,38496.0,0.129873]
[1643802264437,0.17627594,38502.0,38496.0,0.129873]
[1643802264636,0.62143602,38503.0,38496.0,0.129873]
[1643802265438,0.27053023,38500.0,38496.0,0.129873]
[1643802265637,0.27053023,38500.0,38496.0,0.064938]
[1643802266484,0.62143602,38503.0,38495.0,0.23390496]
[1643802266687,0.62143602,38503.0,38496.0,0.064939]
[1643802267385,0.26913983,38502.0,38496.0,0.064939]
[1643802273549,0.62143602,38503.0,38496.0,0.064939]
[1643802273790,0.62143602,38503.0,38497.0,0.2231937]
[1643802273988,0.62143602,38503.0,38496.0,0.064939]
[1643802274690,0.21421721,38502.0,38496.0,0.129875]
[1643802275087,0.21421721,38502.0,38496.0,0.19481]
[1643802276990,0.62143602,38503.0,38496.0,0.19481]
[1643802277188,0.62143602,38503.0,38497.0,0.28244365]
[1643802277434,0.62143602,38503.0,38498.0,0.064933]
[1643802277635,0.62143602,38503.0,38497.0,0.064935]
[1643802277835,0.62143602,38503.0,38497.0,0.28310368]
[1643802278635,0.62112339,38503.0,38497.0,0.28310368]
[1643802279435,0.62112339,38503.0,38497.0,0.064935]
[1643802280841,0.62112339,38503.0,38497.0,0.28161296]
[1643802282293,0.30686237,38503.0,38499.0,0.23827868]
[1643802282992,0.30686237,38503.0,38497.0,0.064935]
[1643802283994,0.56186985,38503.0,38497.0,0.26783379]
[1643802284597,0.56186985,38503.0,38497.0,0.064935]
[1643802287942,0.3306723,38500.0,38494.0,0.58968765]
[1643802288142,0.3306723,38500.0,38494.0,0.259745]